[Event "Mongolian Championship Open 2022"]
[Site "Chingis Khentii"]
[Date "2022.05.16"]
[Round "5.1"]
[White "Amilal Munkhdalai"]
[Black "Batsuren, Dambasuren"]
[Result "0-1"]
[ECO "A45"]
[WhiteElo "2033"]
[BlackElo "2501"]
[Annotator "TA"]
[PlyCount "108"]
[EventDate "2022.05.12"]
[EventType "tourn"]
[EventCountry "MGL"]
[SourceTitle "playchess.com"]
[Source "ChessBase"]
[SourceQuality "1"]
[TimeControl "40/5400+30:1800+30"]

{[%evp 9,108,0,27,40,15,27,29,-11,-11,-11,-14,-27,-35,-50,-61,-57,-64,-63,-47,-120,-126,-156,-160,-162,-162,-156,-172,-164,-51,-169,-165,-137,-64,-61,-72,-136,-121,-199,-123,-118,-118,-125,-125,-129,-135,-114,-121,-130,-36,-39,-41,-127,-127,-118,-124,-135,-135,-128,-128,-159,-128,-193,-186,-155,-138,-137,-120,-122,-66,-192,-135,-306,-288,-287,-188,-903,-876,-854,-725,-1496,-603,-1322,-1773,-1660,-1716,-1722,-1770,-1739,-1712,-1349,-990,-864,-798,-5409,-2079,-29974,-29975,-29974,-29974,-7521,-5405]} 1. d4 {[%emt 0:00:03]} Nf6 {[%emt 0:00:20]} 2. Bf4 {[%emt 0:00:05]} g6 {[%emt 0:00:13]} 3. Nc3 {[%emt 0:00:32]} d5 {[%emt 0:00:14]} 4. e3 {[%emt 0:00:35]} Bg7 {[%emt 0:00:07]} 5. h4 {[%emt 0:00:09]} O-O {[%emt 0:00:17][%cal Oc7c5]} 6. h5 {[%emt 0:00:45] A45: Trompowsky Attack.} c5 {[%emt 0:00:12]} 7. hxg6 {[%emt 0:00:43]} hxg6 {[%emt 0:00:16]} 8. Nf3 {[%emt 0:02:39] White has an edge.} Qb6 {[%emt 0:01:45] [#]} 9. Nb5 $146 {[%emt 0:14:32]} ({Predecessor:} 9. Na4 Qa5+ 10. c3 cxd4 11. exd4 Bg4 12. Be2 Nc6 13. Nc5 Ne4 14. Nd3 Bxf3 15. gxf3 {½-½ (70) Mikhailovsky,V (2228)-Jumabayev,R (2654) Chess.com INT 2020}) 9... a6 {[%emt 0:09:06][%cal Ba7a6,Ba6b5,Bb5b4][%mdl 32]} 10. Nc7 {[%emt 0:02:34]} Ra7 {[%emt 0:00:34]} 11. Nb5 {[%emt 0:00:18]} axb5 {[%emt 0:05:28]} 12. Bxb8 {[%emt 0:00:06]} Ra4 {[%emt 0:00:13] Strongly threatening ...cxd4.} 13. Be5 {[%emt 0:09:18]} Qa5+ {[%emt 0:06:54]} 14. Qd2 {[%emt 0:01:19]} (14. Nd2 $1 $15) 14... b4 $1 $17 {[%emt 0:01:37]} 15. b3 {[%emt 0:37:41] Hoping for Bxf6.} Rxa2 {[%emt 0:06:04]} 16. Rxa2 {[%emt 0:00:05]} Qxa2 {[%emt 0:00:06]} 17. dxc5 {[%emt 0:00:05]} Qb1+ {[%emt 0:01:28]} 18. Qd1 {[%emt 0:00:42]} Qxd1+ {[%emt 0:00:12]} 19. Kxd1 {[%emt 0:00:05]} Ne4 {[%emt 0:00:08][%csl LRc5,LRf2]} 20. Ke1 {[%emt 0:05:00]} Nxc5 {[%emt 0:08:37]} (20... Bf5 $17 21. Bd3 Ra8 22. Bxg7 Kxg7) 21. Bxg7 {[%emt 0:04:20]} Kxg7 {[%emt 0:00:13]} 22. Ne5 {[%emt 0:02:00]} ({White should try} 22. Rh4) 22... Bf5 {[%emt 0:02:54]} 23. Bd3 {[%emt 0:02:32] [#]} (23. Nd3 $17 Bxd3 24. Bxd3) 23... f6 {[%emt 0:02:59]} ({Better is} 23... Ra8 $1 $19 {[%cal Ra8a1]} 24. Rh4 Ne4 25. Bxe4 dxe4) 24. Bxf5 {[%emt 0:00:11][%cal Oe5d7]} fxe5 {[%emt 0:00:12][%mdl 4096] Endgame KRB-KRN} 25. Bd3 {[%emt 0:00:06]} Ra8 {[%emt 0:02:56] Threatens to win with ...Ra1+.} 26. Rh4 {[%emt 0:06:53]} Ra1+ {[%emt 0:06:15]} 27. Kd2 {[%emt 0:00:22]} e4 {[%emt 0:00:10]} 28. Bb5 {[%emt 0:04:28]} Rg1 {[%emt 0:02:04]} (28... Ra5 $17 29. Be2 e5) 29. Rg4 $1 $15 {[%emt 0:02:17]} Kh6 {[%emt 0:00:30]} 30. Be8 {[%emt 0:02:57]} (30. Rh4+ $1 $15 Kg5 31. g3) 30... g5 $17 {[%emt 0:00:10]} 31. Rg3 {[%emt 0:00:45]} Rh1 {[%emt 0:02:56]} 32. Bf7 {[%emt 0:01:18]} e6 {[%emt 0:00:08][%cal Be7e6,Be6e5][%mdl 32]} 33. Be8 {[%emt 0:00:06]} Rh4 {[%emt 0:02:02] Black is more active.} 34. Bb5 {[%emt 0:00:27]} Kg6 {[%emt 0:01:21]} 35. c3 {[%emt 0:01:21]} (35. Be8+ $17 Kf6 36. Rh3) 35... bxc3+ {[%emt 0:06:05]} 36. Kxc3 {[%emt 0:00:03]} e5 {[%emt 0:00:30]} 37. b4 {[%emt 0:00:46]} Ne6 {[%emt 0:05:56]} 38. Bd7 {[%emt 0:00:18]} d4+ {[%emt 0:01:00]} ({Black should play} 38... Ng7 $17 39. Rh3 Rxh3 40. Bxh3 Nf5) 39. Kb3 {[%emt 0:00:56] [#]} (39. Kc4 $15 d3 40. Kc3 (40. Bxe6 $2 d2 $19)) 39... Nc7 {[%emt 0:03:42]} (39... Ng7 $1 $19 {[%cal Rg7f5] White must now prevent ...Nf5.} 40. Rh3 Nf5) 40. Bc8 {[%emt 0:00:00] Now White is beyond hope.} (40. Rh3 $17) 40... b6 $19 {[%emt 0:00:00]} 41. Rh3 {[%emt 0:17:53]} Ne8 {[%emt 0:19:30]} 42. g3 $2 {[%emt 0:09:48]} (42. Kc2) 42... Rxh3 {[%emt 0:01:28]} 43. Bxh3 {[%emt 0:00:05] KB-KN} Nd6 {[%emt 0:00:06]} 44. g4 {[%emt 0:00:05]} Kf6 {[%emt 0:01:04]} 45. Bf1 {[%emt 0:00:04]} d3 {[%emt 0:01:23]} 46. Bg2 {[%emt 0:01:02]} Ke6 {[%emt 0:00:12]} 47. Kc3 {[%emt 0:00:06]} Kd5 {[%emt 0:00:10]} 48. Bf1 {[%emt 0:00:41]} Ne8 {[%emt 0:00:26]} 49. Bg2 {[%emt 0:00:49]} Nf6 {[%emt 0:00:14] aiming for ...Kd6.} 50. Bh3 {[%emt 0:00:05]} b5 {[%emt 0:02:33]} 51. Bg2 {[%emt 0:02:44]} Kd6 {[%emt 0:03:51]} ({Worse is} 51... Nxg4 52. f3 Nxe3 53. fxe4+ Kd6 54. Bf3 $17) 52. f3 {[%emt 0:02:22]} exf3 {[%emt 0:00:40]} 53. Bxf3 {[%emt 0:00:06]} e4 {[%emt 0:00:04]} 54. Bd1 {[%emt 0:00:06]} Ke5 {[%emt 0:29:55] Weighted Error Value: White=0.67/Black=0.12 (very precise)} 0-1

[Event "Mongolian Championship Open 2022"]
[Site "Chingis Khentii"]
[Date "2022.05.16"]
[Round "5.2"]
[White "Agibileg, Uurtsaikh"]
[Black "Bilguun, Sumiya"]
[Result "1-0"]
[ECO "D36"]
[WhiteElo "2440"]
[BlackElo "2454"]
[Annotator "TA"]
[PlyCount "71"]
[EventDate "2022.05.12"]
[EventType "tourn"]
[EventCountry "MGL"]
[SourceTitle "playchess.com"]
[Source "ChessBase"]
[SourceQuality "1"]
[TimeControl "40/5400+30:1800+30"]

{[%evp 22,71,6,3,0,0,0,0,0,0,0,-10,13,12,8,7,57,14,6,0,4,6,13,5,11,10,36,24,31,36,111,93,79,102,392,400,383,377,564,556,636,593,803,788,939,916,5414,5397,29988,29989,29997,29998]} 1. d4 {[%emt 0:00:27]} d5 {[%emt 0:00:07]} 2. c4 {[%emt 0:00:19]} e6 {[%emt 0:00:07]} 3. Nc3 {[%emt 0:00:19]} Nf6 {[%emt 0:00:39]} 4. cxd5 {[%emt 0:00:18]} exd5 {[%emt 0:00:05]} 5. Bg5 {[%emt 0:00:40]} c6 {[%emt 0:00:29]} 6. e3 {[%emt 0:01:04]} Be7 {[%emt 0:01:37]} 7. Bd3 {[%emt 0:01:07]} Nbd7 {[%emt 0:00:20][%cal Bb8d7,Bd7f8,Bf8e6][%mdl 32]} 8. Nge2 {[%emt 0:00:21]} Nf8 {[%emt 0:02:25]} 9. O-O {[%emt 0:02:53]} Ne6 {[%emt 0:03:22]} 10. Bh4 {[%emt 0:01:18]} O-O {[%emt 0:03:19]} 11. Qc2 {[%emt 0:00:26] 11.f3 gains popularity.} g6 {[%emt 0:00:11]} 12. f3 {[%emt 0:00:46]} b6 {[%emt 0:03:59] D36: Queen's Gambit Declined: Exchange Variation: Main line (5 Bg5 c6 6 Qc2).} 13. Kh1 {[%emt 0:01:54]} Bb7 {[%emt 0:01:25] [#]} 14. Bf2 $146 {[%emt 0:06:28]} ({Predecessor:} 14. Rad1 Nh5 15. Bxe7 Qxe7 16. e4 Rad8 17. e5 c5 18. Qa4 a6 19. f4 cxd4 20. Nb1 {0-1 (33) Gilimshin,A (2607)-Pinkovetsky,S (2610) ICCF email 2004}) 14... c5 {[%emt 0:09:28] The position is equal.} 15. Qd2 {[%emt 0:07:28]} Rc8 {[%emt 0:07:33]} 16. Bc2 {[%emt 0:02:54]} a6 {[%emt 0:15:46]} 17. Rad1 {[%emt 0:04:05]} Qc7 {[%emt 0:01:36]} 18. Bg3 {[%emt 0:02:36]} Qc6 {[%emt 0:10:32]} (18... Qd8 $11) 19. dxc5 {[%emt 0:12:23]} bxc5 {[%emt 0:02:59]} 20. Be5 {[%emt 0:00:22]} Rfd8 {[%emt 0:02:59]} 21. Bb3 {[%emt 0:00:39]} c4 {[%emt 0:01:28]} 22. Bc2 {[%emt 0:02:05]} Nd7 {[%emt 0:04:36]} 23. Nd4 {[%emt 0:08:00]} ({Not} 23. Nxd5 $2 Qxd5 24. Qxd5 Bxd5 $19) 23... Nxd4 {[%emt 0:02:16]} 24. Bxd4 {[%emt 0:00:24]} Nc5 {[%emt 0:01:09]} 25. f4 {[%emt 0:07:50][%cal Bf3f4,Bf4f5][%mdl 32]} Bf6 {[%emt 0:08:12] [#]} (25... Ne6 $1 $14) 26. f5 $1 $16 {[%emt 0:00:25]} g5 {[%emt 0:01:09]} 27. Qe2 {[%emt 0:03:19][%cal Oh2h4] h4! is the strong threat.} Ne4 $2 {[%emt 0:08:41][%mdl 8192] [#] Black cannot hold the game after this.} (27... h6 $16) 28. Nxd5 $1 $18 {[%emt 0:06:18][%mdl 512]} Qxd5 {[%emt 0:04:29]} 29. Bxf6 {[%emt 0:00:29][%mdl 64] Discovered Attack} Nxf6 {[%emt 0:00:12]} (29... Qxd1 $142 30. Rxd1 Rxd1+ 31. Bxd1 Nxf6) 30. Rxd5 Rxd5 {[%emt 0:00:01]} 31. e4 {[%emt 0:01:25]} Re8 {[%emt 0:00:46]} 32. Qe3 {[%emt 0:02:05]} h6 {[%emt 0:01:39]} 33. Qb6 {[%emt 0:00:18]} Rd2 {[%emt 0:02:12]} 34. Qxf6 {[%emt 0:00:10]} Rxc2 {[%emt 0:00:37]} 35. Qxh6 {[%emt 0:00:11]} Bxe4 {[%emt 0:00:31]} 36. f6 {[%emt 0:00:07] Weighted Error Value: White=0.03 (flawless) /Black=0.70} 1-0

[Event "Mongolian Championship Open 2022"]
[Site "Chingis Khentii"]
[Date "2022.05.16"]
[Round "5.3"]
[White "Enkhnar, Enkhbaatar"]
[Black "Boldoo, Erdenepurev"]
[Result "1-0"]
[ECO "B09"]
[WhiteElo "2368"]
[BlackElo "2371"]
[Annotator "TA"]
[PlyCount "71"]
[EventDate "2022.05.12"]
[EventType "tourn"]
[EventCountry "MGL"]
[SourceTitle "playchess.com"]
[Source "ChessBase"]
[SourceQuality "1"]
[TimeControl "40/5400+30:1800+30"]

{[%evp 12,71,48,27,54,64,52,48,51,63,82,100,81,100,90,96,114,104,186,162,193,112,93,75,105,102,111,102,165,176,168,174,160,167,269,260,248,232,225,158,201,80,91,84,71,81,73,72,82,41,62,44,48,57,37,0,22,0,94,63,6370,5418]} 1. e4 {[%emt 0:00:24]} d6 {[%emt 0:00:34]} 2. d4 {[%emt 0:01:09]} Nf6 {[%emt 0:00:05]} 3. Nc3 {[%emt 0:01:00]} g6 {[%emt 0:00:37]} 4. f4 {[%emt 0:00:32]} Bg7 {[%emt 0:01:01]} 5. Nf3 {[%emt 0:00:07]} Nbd7 {[%emt 0:00:55]} 6. Be3 {[%emt 0:01:50]} O-O {[%emt 0:00:20]} 7. Qd2 {[%emt 0:00:16]} b6 {[%emt 0:03:24] B09: Pirc Defence: Austrian Attack.} 8. e5 {[%emt 0:00:42]} Ng4 {[%emt 0:04:18]} 9. Bg1 {[%emt 0:02:13]} c5 {[%emt 0:00:07] White is slightly better.} 10. O-O-O {[%emt 0:03:50] [#]} cxd4 $146 {[%emt 0:06:15]} ({Predecessor:} 10... Bb7 11. e6 fxe6 12. Ng5 Rf6 13. Qe2 Nh6 14. Nxe6 Rxe6 15. Qxe6+ Kh8 16. d5 Nf6 {1-0 (40) Campora,D (2515)-Todorcevic,M (2480) Cordoba 1991}) 11. Bxd4 {[%emt 0:01:38]} Bb7 {[%emt 0:12:15][%cal Rd6e5]} 12. e6 {[%emt 0:10:24]} fxe6 {[%emt 0:11:11]} 13. Bxg7 {[%emt 0:00:20]} Kxg7 {[%emt 0:00:09]} 14. Be2 {[%emt 0:04:47]} Rf6 {[%emt 0:04:04]} (14... e5 $2 15. Ng5 Nc5 16. Bxg4 $18) (14... Ngf6 $16) 15. Ng5 $1 $18 {[%emt 0:01:24]} Nh6 {[%emt 0:02:05] [#]} 16. Bc4 {[%emt 0:03:54]} (16. h4 $1 $18) 16... d5 $16 {[%emt 0:01:13] [#]} 17. Nce4 $1 {[%emt 0:00:49]} Nf8 {[%emt 0:01:55] aiming for ...Qc7.} (17... Nc5 18. Nxf6) 18. Nxf6 {[%emt 0:01:00] White is much more active.} exf6 {[%emt 0:00:14]} 19. Nf3 {[%emt 0:00:10]} Nf5 {[%emt 0:00:42]} (19... Qe7 $16 {might work better.}) 20. Rhe1 $18 {[%emt 0:00:40]} Nd6 {[%emt 0:00:37]} 21. Bd3 {[%emt 0:00:17]} Qc7 {[%emt 0:00:22]} 22. g4 {[%emt 0:00:23]} Ne4 {[%emt 0:00:59]} (22... Kg8 $142 23. Kb1 Qe7) 23. Bxe4 {[%emt 0:00:30]} dxe4 {[%emt 0:00:08]} 24. Nd4 {[%emt 0:00:24]} f5 {[%emt 0:02:07]} 25. h4 {[%emt 0:04:03]} fxg4 {[%emt 0:01:57] [#]} 26. Nb5 {[%emt 0:00:47]} (26. h5 $1 $18 {and the rest is easy.}) 26... Qc5 {[%emt 0:02:24]} 27. Nd6 {[%emt 0:00:40]} Bd5 {[%emt 0:00:25]} 28. Nxe4 {[%emt 0:00:19]} Bxe4 {[%emt 0:00:54]} 29. Rxe4 {[%emt 0:00:09] Strongly threatening Re5.} h5 {[%emt 0:00:18]} 30. Rd4 {[%emt 0:04:22]} Re8 {[%emt 0:00:16]} 31. Qe2 {[%emt 0:00:43]} Re7 {[%emt 0:00:31]} 32. Rc4 {[%emt 0:01:30]} Qf5 {[%emt 0:00:24]} 33. Rd8 {[%emt 0:00:19]} e5 {[%emt 0:03:38] Threatens to win with ...Ne6.} 34. Rd5 {[%emt 0:01:40]} (34. Rd6 $5 {[%cal Rc4e4]}) 34... Nd7 {[%emt 0:02:08]} (34... g5 $11 {keeps the balance.} 35. hxg5 Ng6 36. fxe5 Qxg5+ 37. Qd2 Qxd2+ 38. Kxd2 Nxe5) 35. fxe5 {[%emt 0:01:02] Black must now prevent Rc7.} Rxe5 $2 {[%emt 0:00:48][%mdl 8192] [#]} (35... Nc5 $14) 36. Rxd7+ $1 {[%emt 0:54:13][%mdl 512] Weighted Error Value: White=0.17 (very precise) /Black=0.23 (precise)} 1-0

[Event "Mongolian Championship Open 2022"]
[Site "Chingis Khentii"]
[Date "2022.05.16"]
[Round "5.4"]
[White "Amartuvshin, Ganzorig"]
[Black "Gundavaa, Bayarsaikhan"]
[Result "1/2-1/2"]
[ECO "D45"]
[WhiteElo "2350"]
[BlackElo "2495"]
[Annotator "TA"]
[PlyCount "60"]
[EventDate "2022.05.12"]
[EventType "tourn"]
[EventCountry "MGL"]
[SourceTitle "playchess.com"]
[Source "ChessBase"]
[SourceQuality "1"]
[TimeControl "40/5400+30:1800+30"]

{[%evp 13,60,16,11,0,0,0,0,0,0,0,0,-12,0,-22,-20,-23,-20,-27,-8,-4,0,0,0,0,0,0,0,0,1,0,9,8,6,2,6,-2,-3,-19,-11,-31,-31,-31,-35,-39,-44,-161,-6,0,0]} 1. d4 {[%emt 0:00:01]} d5 {[%emt 0:00:43]} 2. c4 {[%emt 0:00:08]} c6 {[%emt 0:00:18]} 3. Nc3 {[%emt 0:00:11]} Nf6 {[%emt 0:00:09]} 4. e3 {[%emt 0:00:10]} e6 {[%emt 0:00:34]} 5. Nf3 {[%emt 0:00:10]} Nbd7 {[%emt 0:00:22]} 6. Qc2 {[%emt 0:00:31]} b6 {[%emt 0:00:55]} 7. Bd3 {[%emt 0:04:15]} Bb7 {[%emt 0:01:03]} 8. cxd5 {[%emt 0:02:09] D45: Semi-Slav: 5 e3.} cxd5 {[%emt 0:18:28]} 9. O-O {[%emt 0:00:36]} Bd6 {[%emt 0:01:08]} 10. Bd2 {[%emt 0:15:29][%cal Bc1d2,Bd2e1,Be1b4][%mdl 32]} a6 {[%emt 0:03:09] [#] Against Nb5} 11. Ne2 $146 {[%emt 0:08:04]} ({Predecessor:} 11. Rfc1 O-O 12. Be1 Re8 13. Ne2 Ne4 14. Qb3 Qe7 15. a3 Rac8 16. Bb4 Bxb4 17. Qxb4 Qxb4 18. axb4 Rxc1+ 19. Rxc1 {½-½ (23) Schulze,U (2319)-Beikert,G (2449) Germany 2010}) 11... Ne4 {[%emt 0:02:45]} 12. Be1 {[%emt 0:04:20]} O-O {[%emt 0:02:01]} 13. Nd2 {[%emt 0:01:43][%cal Rd2e4]} Rc8 {[%emt 0:13:44]} 14. Qb1 {[%emt 0:00:21][%cal Rd3e4]} Ndf6 {[%emt 0:07:14][%cal Od6h2] Strongly threatening ...Bxh2+!} 15. h3 {[%emt 0:08:57]} Bb8 {[%emt 0:02:34]} 16. Nf3 {[%emt 0:07:43]} Nd7 {[%emt 0:08:37]} 17. Bb4 {[%emt 0:05:47]} Re8 {[%emt 0:00:16]} 18. Rc1 {[%emt 0:05:44]} Qf6 {[%emt 0:00:57]} 19. Rxc8 {[%emt 0:10:30]} Rxc8 {[%emt 0:00:12]} 20. Nc3 {[%emt 0:01:10]} Nxc3 {[%emt 0:02:23]} 21. Bxc3 {[%emt 0:00:55]} ({Don't go for} 21. Bxh7+ $2 Kh8 22. Bxc3 (22. bxc3 $2 g6 $19) 22... g6 $19) 21... h6 {[%emt 0:02:07]} 22. Qf1 {[%emt 0:00:38]} a5 {[%emt 0:01:04]} 23. Rc1 {[%emt 0:01:38]} Qe7 {[%emt 0:00:49]} 24. Bb5 {[%emt 0:03:24]} Nf6 {[%emt 0:00:42]} 25. Ba6 {[%emt 0:05:33]} Ne4 {[%emt 0:01:51]} 26. a4 {[%emt 0:06:20]} Bxa6 {[%emt 0:07:38]} 27. Qxa6 {[%emt 0:00:15]} Qd8 {[%emt 0:00:19]} 28. Qf1 {[%emt 0:03:57]} Rc4 {[%emt 0:02:27]} 29. Nd2 {[%emt 0:03:01] [#]} ({White should try} 29. Qd3 $15) 29... Nxd2 $2 {[%emt 0:00:48]} (29... Rxa4 30. Nxe4 dxe4 31. Qb5 $14) (29... Qc7 $1 $19 {[%csl Gb8][%cal Rc7h2]} 30. g3 Rxc3 31. Rxc3 Nxc3 32. bxc3 Qxc3) 30. Bxd2 $11 {[%emt 0:00:07]} Qc7 {[%emt 0:00:09] Weighted Error Value: White=0.15 (very precise) /Black=0.16 (very precise)} 1/2-1/2

[Event "Mongolian Championship Open 2022"]
[Site "Chingis Khentii"]
[Date "2022.05.16"]
[Round "5.5"]
[White "Munkhgal, Gombosuren"]
[Black "Battulga, Namkhai"]
[Result "0-1"]
[ECO "D11"]
[WhiteElo "2502"]
[BlackElo "2402"]
[Annotator "TA"]
[PlyCount "103"]
[EventDate "2022.05.12"]
[EventType "tourn"]
[EventCountry "MGL"]
[SourceTitle "playchess.com"]
[Source "ChessBase"]
[SourceQuality "1"]
[TimeControl "40/5400+30:1800+30"]

{[%evp 9,103,13,11,6,78,67,71,22,82,22,58,0,6,0,13,-12,-14,-24,-34,-34,-29,-27,0,0,25,0,25,0,0,0,0,0,0,0,0,-6,-8,-9,-8,-10,-10,-8,-8,-8,0,0,0,0,0,0,0,0,0,0,0,0,0,0,14,15,72,70,83,90,81,97,133,35,57,35,40,57,62,63,66,63,72,66,65,0,121,0,58,0,27,17,38,16,13,15,11,11,30,0,0,-8]} 1. d4 {[%emt 0:00:02]} d5 {[%emt 0:00:07]} 2. c4 {[%emt 0:00:06]} c6 {[%emt 0:00:05]} 3. Nf3 {[%emt 0:00:02]} Nf6 {[%emt 0:00:06]} 4. g3 {[%emt 0:00:01]} Bf5 {[%emt 0:02:36]} 5. Bg2 {[%emt 0:00:59]} Nbd7 {[%emt 0:01:24]} 6. Qb3 {[%emt 0:00:43] [#] D11: Slav Defence: 3 Nf3 sidelines and 3...Nf6 4 e3 Bg4.} Bxb1 $146 {[%emt 0:06:25]} (6... Qb6 $11 {keeps the balance.}) ({Predecessor:} 6... Qb6 7. O-O e6 8. Nc3 Qxb3 9. axb3 Bc2 10. Nd2 Bd6 11. c5 Bc7 12. b4 e5 13. Nf3 e4 14. Nh4 O-O 15. Nf5 Bb3 {1-0 (44) Prohaszka,P (2598)-Palla,G (1992) Ajka 2019}) 7. Rxb1 $16 {[%emt 0:00:08]} Qb6 {[%emt 0:00:03]} 8. O-O {[%emt 0:06:13]} ({White should play} 8. Qa4 $16) 8... g6 {[%emt 0:15:11]} (8... Qxb3 $11 9. axb3 e6) 9. Bf4 {[%emt 0:05:57]} (9. Qc2 $16) 9... Bg7 {[%emt 0:13:19]} 10. Ne5 {[%emt 0:04:19]} ({Better is} 10. Qc2 $14) 10... Qxb3 $1 $11 {[%emt 0:12:00]} 11. axb3 {[%emt 0:00:07]} e6 {[%emt 0:00:10]} 12. Rfd1 {[%emt 0:14:20]} Nh5 {[%emt 0:12:12]} 13. cxd5 {[%emt 0:12:27]} exd5 {[%emt 0:03:43]} 14. Bh3 {[%emt 0:00:48]} Nxe5 {[%emt 0:04:45]} 15. Bxe5 {[%emt 0:01:50]} Bxe5 {[%emt 0:00:09]} (15... f5 {feels hotter.} 16. Ra1 Kd7 17. e4 dxe4 18. g4 fxg4 19. Bxg4+ Ke7) 16. dxe5 {[%emt 0:00:02]} f5 {[%emt 0:04:17]} 17. f3 {[%emt 0:07:52]} O-O {[%emt 0:11:30]} 18. e4 {[%emt 0:00:15]} dxe4 {[%emt 0:00:57]} 19. fxe4 {[%emt 0:00:42]} Rae8 {[%emt 0:04:01]} 20. exf5 {[%emt 0:01:15]} Rxe5 {[%emt 0:00:06]} 21. fxg6 {[%emt 0:24:01]} hxg6 {[%emt 0:00:02]} 22. Rd7 {[%emt 0:03:40]} Rf7 {[%emt 0:00:02]} 23. Rbd1 {[%emt 0:00:12]} Nf6 {[%emt 0:00:17]} 24. Rxf7 {[%emt 0:01:59]} (24. R7d6 {keeps more tension.} Kf8 25. Rf1 Ke7 26. Rd4) 24... Kxf7 {[%emt 0:00:02][%mdl 4096] Endgame KRB-KRN} 25. Bf1 {[%emt 0:00:16]} Ke7 {[%emt 0:01:44]} 26. Bd3 {[%emt 0:03:00]} Kf7 {[%emt 0:01:36]} 27. h3 {[%emt 0:01:16]} Kg7 {[%emt 0:01:32]} 28. Kf1 {[%emt 0:05:48]} Rd5 {[%emt 0:01:58]} 29. Ke2 {[%emt 0:00:28]} Rd4 {[%emt 0:00:46]} 30. Ra1 {[%emt 0:01:09]} a6 {[%emt 0:00:12]} 31. Ra4 {[%emt 0:00:14]} Rd6 {[%emt 0:00:20]} 32. h4 {[%emt 0:02:00]} c5 {[%emt 0:00:53]} 33. Rf4 {[%emt 0:01:24]} Nh5 {[%emt 0:00:57]} 34. Rg4 {[%emt 0:01:04]} b5 {[%emt 0:00:07]} (34... a5 $11) 35. Rg5 $16 {[%emt 0:00:20]} Kh6 {[%emt 0:01:02]} 36. Ke3 {[%emt 0:01:09]} (36. Rxc5 $6 Nxg3+ 37. Ke3 Nh5 $11) 36... Re6+ {[%emt 0:01:22]} 37. Be4 {[%emt 0:00:56]} Ng7 {[%emt 0:02:26] [#]} 38. Kd3 {[%emt 0:01:23]} (38. Rxc5 $6 Nf5+ 39. Kf3 Nd4+ 40. Kf4 Ne2+ 41. Kf3 Nd4+ 42. Kf4 Ne2+ 43. Kf3 Nd4+ $11) (38. g4 $1 $16) 38... Rd6+ {[%emt 0:00:19]} 39. Kc3 {[%emt 0:00:40]} Re6 {[%emt 0:00:38]} 40. Bd3 {[%emt 0:00:00]} Nh5 {[%emt 0:00:00]} 41. Kd2 {[%emt 0:02:18]} ({But not} 41. Rxc5 Nxg3 42. b4 Nh5 $11) 41... Rb6 {[%emt 0:08:47]} 42. Bc2 {[%emt 0:05:32]} ({Don't play} 42. Rxc5 Nxg3 43. Ke3 Re6+ 44. Kf3 Rd6 $11) 42... Rc6 {[%emt 0:06:24]} 43. Be4 {[%emt 0:06:30]} Re6 {[%emt 0:00:20]} 44. Ke3 {[%emt 0:09:13]} (44. Bb1 $14) 44... Ng7 $1 {[%emt 0:01:47]} 45. Kd3 {[%emt 0:04:23]} ({Much worse is} 45. Rxc5 $6 Nf5+ 46. Kf3 Nd4+ 47. Kf4 Ne2+ 48. Kf3 Nd4+ 49. Kf4 Ne2+ 50. Kf3 Nd4+ $11) ({White should try} 45. g4 $16) 45... Rd6+ $14 {[%emt 0:00:47]} 46. Kc3 {[%emt 0:02:11]} Re6 {[%emt 0:02:15]} 47. Bc2 {[%emt 0:00:34] Hoping for g4.} Rf6 $1 {[%emt 0:04:44]} 48. Rxc5 {[%emt 0:02:48] Threatens to win with Be4.} Rf3+ {[%emt 0:00:10]} 49. Kb4 {[%emt 0:00:07] [#] Black must now prevent Rc3.} Rxg3 {[%emt 0:00:09]} 50. Rc6 {[%emt 0:00:53]} Kh5 $1 {[%emt 0:02:29]} 51. Ka5 {[%emt 0:01:48] aiming for b4.} Nf5 {[%emt 0:00:10]} 52. Rc5 {[%emt 0:01:06][%mdl 32768] Weighted Error Value: White=0.18 (very precise) /Black=0.11 (very precise) . Loss on time!?} 0-1